bitfinex/quotes_BTCUSD_20230905
["timestamp","ask_amount","ask_price","bid_price","bid_amount"]
[1693898566426,0.002,25704.0,25703.0,2.97393414]
[1693898571367,0.002,25704.0,25703.0,3.00491724]
[1693898571809,0.002,25704.0,25703.0,3.39863724]
[1693898571982,0.002,25704.0,25703.0,4.52391722]
[1693898572191,0.002,25704.0,25703.0,4.52337068]
[1693898572389,0.002,25704.0,25703.0,3.40301724]
[1693898572588,0.002,25704.0,25703.0,3.40445724]
[1693898572792,0.002,25704.0,25703.0,4.54565339]
[1693898573017,0.002,25704.0,25703.0,4.54049339]
[1693898573177,0.002,25704.0,25703.0,4.53941339]
[1693898573377,0.002,25704.0,25703.0,4.53785339]
[1693898573582,0.002,25704.0,25703.0,4.53815339]
[1693898573828,0.002,25704.0,25703.0,4.53893339]
[1693898574004,0.002,25704.0,25703.0,4.53833339]
[1693898574208,0.002,25704.0,25703.0,4.53587339]
[1693898574407,0.002,25704.0,25703.0,3.41539724]
[1693898574608,0.002,25704.0,25703.0,3.39653724]
[1693898574807,0.002,25704.0,25703.0,3.41641724]
[1693898575010,0.002,25704.0,25703.0,3.41629724]
[1693898575207,0.002,25704.0,25703.0,3.41623724]
[1693898575412,0.002,25704.0,25703.0,3.41413724]
[1693898575614,0.002,25704.0,25703.0,3.41395724]
[1693898576161,0.002,25704.0,25703.0,4.53534531]
[1693898576306,0.002,25704.0,25703.0,4.53468531]
[1693898576513,0.002,25704.0,25703.0,4.5306686]
[1693898576919,0.002,25704.0,25703.0,3.41011724]
[1693898577117,0.002,25704.0,25703.0,3.41017724]
[1693898577313,0.002,25704.0,25703.0,3.41101724]
[1693898577536,0.002,25704.0,25703.0,3.41095724]
[1693898577703,0.002,25704.0,25703.0,4.53457224]
[1693898577928,0.002,25704.0,25703.0,4.53697224]
[1693898578129,0.002,25704.0,25703.0,4.53751224]
[1693898578452,0.002,25704.0,25703.0,4.53715224]
[1693898578673,0.002,25704.0,25703.0,4.53709224]
[1693898578872,0.002,25704.0,25703.0,4.53703224]
[1693898579072,0.002,25704.0,25703.0,4.53685224]
[1693898579232,0.002,25704.0,25703.0,4.53223224]
[1693898579432,0.002,25704.0,25703.0,4.53475224]
[1693898579841,0.002,25704.0,25703.0,4.53463224]
[1693898580043,0.002,25704.0,25703.0,4.53451224]
[1693898580304,0.002,25704.0,25703.0,4.53445224]
[1693898580708,0.002,25704.0,25703.0,4.53127224]
[1693898581012,0.002,25704.0,25703.0,4.53361224]
[1693898581214,0.002,25704.0,25703.0,4.53355224]
[1693898581374,0.002,25704.0,25703.0,4.53343224]
[1693898581570,0.002,25704.0,25703.0,4.53625224]
[1693898581775,0.002,25704.0,25703.0,4.53619224]
[1693898582114,0.002,25704.0,25703.0,4.57594224]
[1693898582292,0.002,25704.0,25703.0,4.57576224]
[1693898582913,0.001,25704.0,25703.0,4.56788224]
[1693898583131,0.001,25704.0,25703.0,4.56740224]
[1693898583294,0.001,25704.0,25703.0,4.56662224]
[1693898583496,0.1587,25707.0,25705.0,3.11223]
[1693898583698,0.1587,25707.0,25706.0,1.329644]
[1693898584252,0.238,25708.0,25706.0,1.329644]
[1693898584407,0.238,25708.0,25707.0,0.0848]
[1693898584836,0.238,25708.0,25707.0,1.951994]
[1693898585379,0.243,25708.0,25707.0,1.951994]
[1693898585586,0.241,25708.0,25707.0,1.951994]
[1693898585918,0.252,25708.0,25707.0,1.952994]
[1693898586614,0.249,25708.0,25707.0,1.952994]
[1693898587054,0.26,25708.0,25707.0,1.953994]
[1693898588293,0.26,25708.0,25707.0,2.34063927]
[1693898588488,0.022,25708.0,25707.0,2.34063927]
[1693898589720,0.3959,25710.0,25707.0,2.33863927]
[1693898589917,0.3959,25710.0,25709.0,2.5742]
[1693898590098,0.2398,25710.0,25709.0,2.5742]
[1693898591764,0.2508,25710.0,25709.0,2.5752]
[1693898592149,0.2508,25710.0,25709.0,2.5762]
[1693898592150,0.2618,25710.0,25709.0,2.5762]
[1693898592931,0.2618,25710.0,25709.0,3.19855]
[1693898593949,0.27855142,25710.0,25709.0,3.19855]
[1693898595312,0.2618,25710.0,25709.0,3.58519527]
[1693898596362,0.28066417,25710.0,25709.0,3.58519527]
[1693898596565,0.2618,25710.0,25709.0,3.58519527]
[1693898596993,0.28066417,25710.0,25709.0,3.58519527]
[1693898599637,0.28066417,25710.0,25709.0,2.96284527]
[1693898600160,0.28066417,25710.0,25709.0,2.5762]
[1693898600161,0.54490631,25710.0,25709.0,2.5762]
[1693898600315,0.54490631,25710.0,25709.0,1.95385]
[1693898605285,0.28066417,25710.0,25709.0,1.95385]
[1693898620445,0.04086417,25710.0,25709.0,1.95385]
[1693898635897,0.04086417,25710.0,25709.0,1.96550418]
[1693898642173,0.04086417,25710.0,25709.0,3.08647302]
[1693898644338,0.04086417,25710.0,25709.0,1.96550418]
[1693898647443,0.04086417,25710.0,25709.0,2.35214945]
[1693898647890,0.04086417,25710.0,25709.0,3.47312924]
[1693898648180,0.022,25710.0,25709.0,3.54476924]
[1693898648415,0.022,25710.0,25709.0,3.54848924]
[1693898648618,0.022,25710.0,25709.0,3.54770924]
[1693898648946,0.022,25710.0,25709.0,3.55052924]
[1693898649148,0.022,25710.0,25709.0,3.55040924]
[1693898649351,0.011,25710.0,25709.0,3.54940924]
[1693898649556,0.011,25710.0,25709.0,3.54922924]
[1693898649557,0.014,25710.0,25709.0,3.54922924]
[1693898649757,0.014,25710.0,25709.0,3.54778924]
[1693898649959,0.014,25710.0,25709.0,3.54766924]
[1693898650157,0.014,25710.0,25709.0,3.54754924]
[1693898650363,0.003,25710.0,25709.0,3.54450924]
[1693898650564,0.003,25710.0,25709.0,3.54216924]
[1693898650768,0.005,25710.0,25709.0,3.54510924]
[1693898650970,0.005,25710.0,25709.0,3.54504924]
[1693898651173,0.005,25710.0,25709.0,3.54582924]
[1693898651324,0.005,25710.0,25709.0,3.54402924]
[1693898651530,0.005,25710.0,25709.0,3.54396924]
[1693898651876,0.005,25710.0,25709.0,3.54366924]
[1693898651997,0.002,25710.0,25709.0,3.54312924]
[1693898652202,0.002,25710.0,25709.0,4.16577924]
[1693898652408,0.002,25710.0,25709.0,4.53128924]
[1693898652610,0.002,25710.0,25709.0,4.53344924]
[1693898652976,0.002,25710.0,25709.0,4.52672924]
[1693898653204,0.002,25710.0,25709.0,4.53398924]
[1693898653471,0.1629,25714.0,25709.0,4.62423649]
[1693898653757,0.01987828,25710.0,25709.0,3.10022229]
[1693898653961,0.01887828,25710.0,25709.0,4.14479113]
[1693898654162,0.001,25710.0,25709.0,4.15979113]
[1693898654374,0.001,25710.0,25709.0,4.15961113]
[1693898654584,0.56969978,25715.0,25709.0,4.13873113]
[1693898654805,0.1639,25714.0,25710.0,1.12088695]
[1693898654997,0.1639,25714.0,25713.0,0.0848]
[1693898655197,0.0167786,25714.0,25713.0,1.329306]
[1693898655402,0.0167786,25714.0,25713.0,2.573812]
[1693898657037,0.0367786,25714.0,25713.0,2.575812]
[1693898657942,0.0567786,25714.0,25713.0,2.50108911]
[1693898673312,0.33286422,25714.0,25713.0,1.87883611]
[1693898673516,0.33286422,25714.0,25713.0,1.870759]
[1693898674432,0.33286422,25714.0,25713.0,1.248506]
[1693898677460,0.0567786,25714.0,25713.0,1.40316411]
[1693898677667,0.0567786,25714.0,25713.0,3.07638363]
[1693898678047,0.0567786,25714.0,25713.0,1.955559]
[1693898730246,0.27022662,25714.0,25713.0,1.955559]
[1693898731496,0.0567786,25714.0,25713.0,1.955559]
[1693898733204,0.0567786,25714.0,25713.0,1.870759]
[1693898743028,0.0567786,25714.0,25713.0,1.955559]
[1693898745738,0.04649963,25714.0,25713.0,1.955559]
[1693898746141,0.05636863,25714.0,25713.0,1.955559]
[1693898747752,0.05636863,25714.0,25713.0,3.07636283]
[1693898769475,0.05636863,25714.0,25713.0,3.16953883]
[1693898770116,0.04,25714.0,25713.0,3.16953883]
[1693898770735,0.05838505,25714.0,25713.0,3.16953883]
[1693898773962,0.05838505,25714.0,25713.0,3.16992983]
[1693898778815,0.05838505,25714.0,25713.0,2.049126]
[1693898779021,0.05838505,25714.0,25713.0,3.16985159]
[1693898792737,0.05838505,25714.0,25713.0,2.54759859]
[1693898794067,0.05838505,25714.0,25713.0,2.45442259]
[1693898794267,0.05838505,25714.0,25713.0,2.5476529]
[1693898794401,0.05838505,25714.0,25713.0,3.1699059]
[1693898809780,0.05838505,25714.0,25713.0,3.30975136]
[1693898813975,0.05838505,25714.0,25713.0,3.65700989]
[1693898815975,0.05838505,25714.0,25713.0,3.1699059]
[1693898817221,0.05838505,25714.0,25713.0,3.30975136]
[1693898824461,0.05838505,25714.0,25713.0,3.1699059]
[1693898825290,0.05838505,25714.0,25713.0,3.30975136]
[1693898830950,0.05838505,25714.0,25713.0,3.6563518]
[1693898832492,0.05838505,25714.0,25713.0,3.30975136]
[1693898838142,0.05838505,25714.0,25713.0,3.1699059]
[1693898838563,0.05838505,25714.0,25713.0,3.0851059]
[1693898848315,0.05838505,25714.0,25713.0,2.99187559]
[1693898851375,0.05838505,25714.0,25713.0,2.36962259]
[1693898851874,0.05838505,25714.0,25713.0,2.99187559]
[1693898853058,0.05838505,25714.0,25713.0,3.07667559]
[1693898860546,0.05838505,25714.0,25713.0,3.1699059]
[1693898868754,0.05838505,25714.0,25713.0,3.16992796]
[1693898869182,0.05838505,25714.0,25713.0,3.8510768]
[1693898869385,0.05838505,25714.0,25713.0,4.55451518]
[1693898869582,0.04,25714.0,25713.0,4.41304972]
[1693898869800,0.04,25714.0,25713.0,4.41346972]
[1693898870213,0.02,25714.0,25713.0,4.41146972]
[1693898870446,0.003,25714.0,25713.0,4.40982972]
[1693898870609,0.003,25714.0,25713.0,4.40868972]
[1693898870948,0.003,25714.0,25713.0,4.40646972]
[1693898871150,0.006,25714.0,25713.0,4.40628972]
[1693898871353,0.001,25714.0,25713.0,4.40592972]
[1693898871563,0.001,25714.0,25713.0,4.40250972]
[1693898871800,0.001,25714.0,25713.0,4.38738972]
[1693898872005,0.001,25714.0,25713.0,4.52088351]
[1693898872212,0.001,25714.0,25713.0,4.51728351]
[1693898872417,0.001,25714.0,25713.0,4.51686351]
[1693898872566,0.001,25714.0,25713.0,4.51698351]
[1693898872774,0.001,25714.0,25713.0,4.51578351]
[1693898873019,0.001,25714.0,25713.0,4.51572351]
[1693898873160,0.001,25714.0,25713.0,4.51488351]
[1693898873358,0.001,25714.0,25713.0,4.51452351]
[1693898873562,0.001,25714.0,25713.0,4.51548351]
[1693898873764,0.0156,25719.0,25713.0,4.51446351]
[1693898873966,0.0156,25719.0,25718.0,0.0848]
[1693898874181,0.0156,25719.0,25718.0,1.329064]
[1693898875514,0.0176,25719.0,25718.0,1.329064]
[1693898875709,0.0186,25719.0,25718.0,1.329064]
[1693898875915,0.0426,25719.0,25718.0,1.331064]
[1693898876118,0.0426,25719.0,25718.0,1.953196]
[1693898877115,0.0396,25719.0,25718.0,1.87648803]
[1693898877320,0.0396,25719.0,25718.0,1.81150748]
[1693898877655,0.0636,25719.0,25718.0,1.81350748]
[1693898878639,0.0636,25719.0,25718.0,1.89830748]
[1693898879652,0.0819715,25719.0,25718.0,1.89830748]
[1693898885128,0.0579715,25719.0,25718.0,1.89630748]
[1693898885326,0.0339715,25719.0,25718.0,1.89430748]
[1693898885529,0.0539715,25719.0,25718.0,1.89630748]
[1693898885727,0.0739715,25719.0,25718.0,1.89830748]
[1693898885930,0.0739715,25719.0,25718.0,1.89430748]
[1693898885931,0.0339715,25719.0,25718.0,1.89430748]
[1693898886352,0.0739715,25719.0,25718.0,1.89830748]
[1693898897856,0.33619899,25719.0,25718.0,1.89830748]
[1693898898250,0.33619899,25719.0,25718.0,0.004]
[1693898898464,0.33619899,25719.0,25718.0,1.248264]
[1693898903082,0.33619899,25719.0,25718.0,0.626132]
[1693898910056,0.33619899,25719.0,25718.0,0.004]
[1693898912897,0.33619899,25719.0,25718.0,0.626132]
[1693898916292,0.33619899,25719.0,25718.0,1.248264]
[1693898916630,0.0739715,25719.0,25718.0,1.248264]
[1693898918417,0.0739715,25719.0,25718.0,1.870396]
[1693898923139,0.31048373,25719.0,25718.0,0.626132]
[1693898927692,0.0739715,25719.0,25718.0,0.626132]
[1693898928331,0.0739715,25719.0,25718.0,1.248264]
[1693898933108,0.0739715,25719.0,25718.0,1.870396]
[1693898933552,0.0739715,25719.0,25718.0,2.34184127]
[1693898933963,0.0556,25719.0,25718.0,2.34184127]
[1693898934586,0.0535188,25719.0,25718.0,2.34184127]
[1693898936468,0.0535188,25719.0,25718.0,2.33984127]
[1693898936469,0.0335188,25719.0,25718.0,2.33984127]
[1693898936673,0.0365188,25719.0,25718.0,2.33984127]
[1693898937352,0.0335188,25719.0,25718.0,2.33984127]
[1693898937532,0.0365188,25719.0,25718.0,2.33984127]
[1693898937713,0.0165188,25719.0,25718.0,2.33784127]
[1693898938262,0.0195188,25719.0,25718.0,2.33784127]
[1693898940937,0.0379853,25719.0,25718.0,2.33784127]
[1693898941335,0.0195188,25719.0,25718.0,2.33784127]
[1693898947362,0.0195188,25719.0,25718.0,2.63784127]
[1693898947567,0.0195188,25719.0,25718.0,2.71782127]
[1693898947775,0.0195188,25719.0,25718.0,2.81163079]
[1693898947984,0.0195188,25719.0,25718.0,2.81151079]
[1693898948156,0.0195188,25719.0,25718.0,2.81157079]
[1693898948357,0.0195188,25719.0,25718.0,2.72082127]
[1693898948579,0.0195188,25719.0,25718.0,2.72070127]
[1693898948741,0.0195188,25719.0,25718.0,2.71872127]
[1693898948921,0.0195188,25719.0,25718.0,2.71842127]
[1693898949122,0.0195188,25719.0,25718.0,2.71500127]
[1693898949347,0.0195188,25719.0,25718.0,2.71482127]
[1693898949542,0.0195188,25719.0,25718.0,2.71452127]
[1693898949741,0.0195188,25719.0,25718.0,2.71608127]
[1693898950099,0.0195188,25719.0,25718.0,2.81037079]
[1693898950398,0.0195188,25719.0,25718.0,2.71794127]
[1693898950590,0.0195188,25719.0,25718.0,2.71758127]
[1693898950803,0.0195188,25719.0,25718.0,2.71740127]
[1693898951008,0.0195188,25719.0,25718.0,2.71746127]
[1693898951212,0.0195188,25719.0,25718.0,2.71578127]
[1693898951433,0.0195188,25719.0,25718.0,2.71680127]
[1693898951641,0.0195188,25719.0,25718.0,2.71674127]
[1693898951842,0.0195188,25719.0,25718.0,2.71836127]
[1693898952050,0.0195188,25719.0,25718.0,2.71824127]
[1693898952258,0.0195188,25719.0,25718.0,2.71848127]
[1693898952467,0.0195188,25719.0,25718.0,2.71830127]
[1693898952667,0.0195188,25719.0,25718.0,2.71860127]
[1693898952877,0.0195188,25719.0,25718.0,2.71854127]
[1693898953091,0.0195188,25719.0,25718.0,2.71866127]
[1693898953253,0.0195188,25719.0,25718.0,2.71872127]
[1693898953460,0.0195188,25719.0,25718.0,2.72004127]
[1693898953673,0.0195188,25719.0,25718.0,2.71992127]
[1693898953867,0.0195188,25719.0,25718.0,2.71980127]
[1693898954070,0.0195188,25719.0,25718.0,2.72190127]
[1693898954285,0.0195188,25719.0,25718.0,2.76021127]
[1693898954484,0.0195188,25719.0,25718.0,2.76105127]
[1693898954717,0.0195188,25719.0,25718.0,2.76087127]
[1693898954924,0.0165188,25719.0,25718.0,2.76843127]
[1693898955134,0.0165188,25719.0,25718.0,2.76753127]
[1693898955339,0.0175188,25719.0,25718.0,2.78127127]
[1693898955541,0.0165188,25719.0,25718.0,2.76663127]
[1693898955751,0.0135188,25719.0,25718.0,2.76681127]
[1693898955949,0.0145188,25719.0,25718.0,2.77919127]
[1693898956101,0.0145188,25719.0,25718.0,2.78207127]
[1693898956361,0.0145188,25719.0,25718.0,2.77083127]
[1693898956567,0.0135188,25719.0,25718.0,2.79041127]
[1693898956770,0.0155188,25719.0,25718.0,2.81341127]
[1693898956971,0.0155188,25719.0,25718.0,2.81359127]
[1693898957311,0.0165188,25719.0,25718.0,2.82877127]
[1693898957519,0.0155188,25719.0,25718.0,2.81377127]
[1693898957721,0.0155188,25719.0,25718.0,2.81467127]
[1693898957925,0.0175188,25719.0,25718.0,2.83867127]
[1693898958351,0.0175188,25719.0,25718.0,2.83873127]
[1693898958552,0.0175188,25719.0,25718.0,2.83801127]
[1693898959466,0.0175188,25719.0,25718.0,2.83819127]
[1693898959787,0.0175188,25719.0,25718.0,2.83837127]
[1693898959968,0.0175188,25719.0,25718.0,2.83849127]
[1693898960186,0.0175188,25719.0,25718.0,2.83843127]
[1693898960467,0.0175188,25719.0,25718.0,2.83819127]
[1693898960618,0.0175188,25719.0,25718.0,2.83825127]
[1693898960824,0.0175188,25719.0,25718.0,2.83579127]
[1693898961048,0.0175188,25719.0,25718.0,2.83615127]
[1693898961432,0.0175188,25719.0,25718.0,2.83579127]
[1693898961632,0.00780348,25719.0,25718.0,2.83573127]
[1693898962031,0.00780348,25719.0,25718.0,2.83579127]
[1693898962299,0.00780348,25719.0,25718.0,2.83603127]
[1693898962470,0.00780348,25719.0,25718.0,2.83627127]
[1693898962706,0.00780348,25719.0,25718.0,2.83705127]
[1693898962906,0.00780348,25719.0,25718.0,2.83711127]
[1693898963320,0.00780348,25719.0,25718.0,2.83831127]
[1693898963517,0.00780348,25719.0,25718.0,2.83669127]
[1693898963692,0.00780348,25719.0,25718.0,2.83363127]
[1693898963917,0.00780348,25719.0,25718.0,2.83141127]
[1693898964141,0.00780348,25719.0,25718.0,2.83015127]
[1693898964365,0.00780348,25719.0,25718.0,2.82979127]
[1693898964547,0.00780348,25719.0,25718.0,2.82985127]
[1693898964769,0.00780348,25719.0,25718.0,2.83003127]
[1693898964895,0.00780348,25719.0,25718.0,2.83093127]
[1693898965096,0.00780348,25719.0,25718.0,2.83063127]
[1693898965320,0.00780348,25719.0,25718.0,2.83039127]
[1693898965634,0.00780348,25719.0,25718.0,2.82949127]
[1693898966157,0.00780348,25719.0,25718.0,2.83009127]
[1693898966496,0.00780348,25719.0,25718.0,2.83033127]
[1693898966681,0.00780348,25719.0,25718.0,2.82865127]
[1693898966863,0.00780348,25719.0,25718.0,2.82871127]
[1693898967057,0.00780348,25719.0,25718.0,2.82883127]
[1693898967461,0.00780348,25719.0,25718.0,2.82637127]
[1693898967638,0.00780348,25719.0,25718.0,2.82469127]
[1693898967845,0.00780348,25719.0,25718.0,2.82577127]
[1693898968047,0.00780348,25719.0,25718.0,2.82535127]
[1693898968244,0.00780348,25719.0,25718.0,2.82541127]
[1693898968600,0.00780348,25719.0,25718.0,2.82547127]
[1693898968947,0.00780348,25719.0,25718.0,2.82565127]
[1693898969096,0.00780348,25719.0,25718.0,2.82415127]
[1693898969303,0.00780348,25719.0,25718.0,2.83549127]
[1693898969464,0.00780348,25719.0,25718.0,2.82559127]
[1693898969690,0.00780348,25719.0,25718.0,2.82583127]
[1693898969894,0.00780348,25719.0,25718.0,2.91868079]
[1693898970141,0.00780348,25719.0,25718.0,2.92084079]
[1693898970353,0.00780348,25719.0,25718.0,2.92168079]
[1693898970547,0.00780348,25719.0,25718.0,2.92156079]
[1693898970753,0.00780348,25719.0,25718.0,2.92162079]
[1693898971089,0.00780348,25719.0,25718.0,3.34266079]
[1693898971301,0.00780348,25719.0,25718.0,3.34308079]
[1693898971502,0.00780348,25719.0,25718.0,3.34284079]
[1693898971706,0.00780348,25719.0,25718.0,3.34314079]
[1693898971985,0.00780348,25719.0,25718.0,3.34224079]
[1693898972143,0.00780348,25719.0,25718.0,3.48169508]
[1693898972344,0.00780348,25719.0,25718.0,3.48175508]
[1693898972739,0.00780348,25719.0,25718.0,3.48115508]
[1693898972948,0.00780348,25719.0,25718.0,3.47947508]
[1693898973164,0.00780348,25719.0,25718.0,3.47953508]
[1693898973346,0.00780348,25719.0,25718.0,3.82131612]
[1693898973552,0.00780348,25719.0,25718.0,3.82551612]
[1693898973747,0.00780348,25719.0,25718.0,3.82557633]
[1693898974098,0.00780348,25719.0,25718.0,3.82551633]
[1693898974274,0.00780348,25719.0,25718.0,3.82515633]
[1693898974482,0.00780348,25719.0,25718.0,3.82461633]
[1693898974686,0.00780348,25719.0,25718.0,3.82479633]
[1693898974855,0.00780348,25719.0,25718.0,3.82305633]
[1693898975057,0.00780348,25719.0,25718.0,3.82311633]
[1693898975288,0.00780348,25719.0,25718.0,3.73062681]
[1693898975483,0.00780348,25719.0,25718.0,3.72960681]
[1693898976085,0.00780348,25719.0,25718.0,3.73128681]
[1693898976286,0.00780348,25719.0,25718.0,3.73224681]
[1693898976548,0.00780348,25719.0,25718.0,3.73014681]
[1693898976741,0.00780348,25719.0,25718.0,3.73104681]
[1693898977146,0.00780348,25719.0,25718.0,3.73110681]
[1693898977290,0.00780348,25719.0,25718.0,3.73134681]
[1693898977503,0.00780348,25719.0,25718.0,3.73050681]
[1693898977721,0.00780348,25719.0,25718.0,3.73044681]
[1693898977903,0.00780348,25719.0,25718.0,3.73338681]
[1693898978080,0.00780348,25719.0,25718.0,3.73074681]
[1693898978285,0.00780348,25719.0,25718.0,3.91926586]
[1693898978491,0.00780348,25719.0,25718.0,3.91428586]
[1693898978693,0.00780348,25719.0,25718.0,3.90648586]
[1693898978906,0.00780348,25719.0,25718.0,3.91374586]
[1693898979107,0.00780348,25719.0,25718.0,3.90858586]
[1693898979310,0.00780348,25719.0,25718.0,3.90750586]
[1693898979508,0.00780348,25719.0,25718.0,3.90744586]
[1693898979733,0.00780348,25719.0,25718.0,3.90690586]
[1693898979934,0.00780348,25719.0,25718.0,3.90834586]
[1693898980145,0.00780348,25719.0,25718.0,3.90912586]
[1693898980658,0.00780348,25719.0,25718.0,3.90780586]
[1693898980814,0.00780348,25719.0,25718.0,3.90810586]
[1693898981022,0.00780348,25719.0,25718.0,3.90816586]
[1693898981222,0.00780348,25719.0,25718.0,3.9082341]
[1693898981475,0.00780348,25719.0,25718.0,3.9080541]
[1693898981881,0.00780348,25719.0,25718.0,3.9095541]
[1693898982080,0.00780348,25719.0,25718.0,3.9092541]
[1693898982371,0.00780348,25719.0,25718.0,3.76901157]
[1693898982604,0.00780348,25719.0,25718.0,3.76919157]
[1693898982759,0.00780348,25719.0,25718.0,3.76961157]
[1693898982957,0.00780348,25719.0,25718.0,3.76979157]
[1693898983171,0.00780348,25719.0,25718.0,3.76967157]
[1693898983345,0.00780348,25719.0,25718.0,3.76961157]
[1693898983718,0.00780348,25719.0,25718.0,3.77465157]
[1693898983927,0.00780348,25719.0,25718.0,3.77453157]
[1693898984327,0.00780348,25719.0,25718.0,3.77237157]
[1693898984826,0.00780348,25719.0,25718.0,3.77249157]
[1693898985428,0.00780348,25719.0,25718.0,3.77237157]
[1693898985646,0.00780348,25719.0,25718.0,3.77255157]
[1693898986033,0.00780348,25719.0,25718.0,3.77261157]
[1693898986704,0.00780348,25719.0,25718.0,3.77267157]
[1693898986913,0.00780348,25719.0,25718.0,3.77315157]
[1693898987043,0.00780348,25719.0,25718.0,3.77327157]
[1693898987450,0.00780348,25719.0,25718.0,3.77333157]
[1693898987830,0.00780348,25719.0,25718.0,3.77399157]
[1693898988021,0.00780348,25719.0,25718.0,3.77567157]
[1693898988321,0.00780348,25719.0,25718.0,3.77465157]
[1693898988545,0.00780348,25719.0,25718.0,3.77525157]
[1693898988748,0.00780348,25719.0,25718.0,3.77339157]
[1693898988967,0.00780348,25719.0,25718.0,3.77543157]
[1693898989167,0.00780348,25719.0,25718.0,3.77459157]
[1693898989388,0.00780348,25719.0,25718.0,3.77639157]
[1693898989570,0.00780348,25719.0,25718.0,3.77447157]
[1693898989879,0.00780348,25719.0,25718.0,3.77441157]
[1693898990079,0.00780348,25719.0,25718.0,3.77381157]
[1693898990395,0.00780348,25719.0,25718.0,4.00647538]
[1693898990671,0.00780348,25719.0,25718.0,4.00653538]
[1693898990875,0.00780348,25719.0,25718.0,4.00833538]
[1693898991072,0.00780348,25719.0,25718.0,3.77519157]
[1693898991274,0.00780348,25719.0,25718.0,4.00911538]
[1693898991476,0.00780348,25719.0,25718.0,4.00797538]
[1693898991653,0.00780348,25719.0,25718.0,4.00719538]
[1693898992062,0.00780348,25719.0,25718.0,4.00737538]
[1693898992224,0.00780348,25719.0,25718.0,4.00731538]
[1693898992665,0.00780348,25719.0,25718.0,4.00611538]
[1693898992819,0.00780348,25719.0,25718.0,4.00887538]
[1693898993014,0.00780348,25719.0,25718.0,4.01061538]
[1693898993419,0.00780348,25719.0,25718.0,4.01049538]
[1693898993683,0.00780348,25719.0,25718.0,5.12899149]
[1693898993882,0.00780348,25719.0,25718.0,5.12893149]
[1693898994130,0.00780348,25719.0,25718.0,4.95669244]
[1693898994312,0.00780348,25719.0,25718.0,4.97211244]
[1693898994527,0.00780348,25719.0,25718.0,4.96641244]
[1693898994729,0.00780348,25719.0,25718.0,4.96791244]
[1693898994950,0.00780348,25719.0,25718.0,4.96743244]
[1693898995272,0.00780348,25719.0,25718.0,4.96527244]
[1693898995627,0.00780348,25719.0,25718.0,4.96533244]
[1693898995831,0.00780348,25719.0,25718.0,4.96521244]
[1693898996030,0.00780348,25719.0,25718.0,4.96563244]
[1693898996231,0.00780348,25719.0,25718.0,4.96803244]
[1693898996551,0.00780348,25719.0,25718.0,4.96653244]
[1693898996754,0.00780348,25719.0,25718.0,4.96521244]
[1693898996958,0.00780348,25719.0,25718.0,4.96497244]
[1693898997191,0.00780348,25719.0,25718.0,4.96527244]
[1693898997394,0.00780348,25719.0,25718.0,4.96851244]
[1693898997595,0.00780348,25719.0,25718.0,4.96809244]
[1693898997714,0.00780348,25719.0,25718.0,4.96575244]
[1693898997920,0.00780348,25719.0,25718.0,4.96605244]
[1693898998361,0.00780348,25719.0,25718.0,4.96611244]
[1693898998530,0.00780348,25719.0,25718.0,4.96587244]
[1693898998732,0.00780348,25719.0,25718.0,4.96791244]
[1693898998978,0.00780348,25719.0,25718.0,4.96821244]
[1693898999280,0.00780348,25719.0,25718.0,4.96617244]
[1693898999479,0.00780348,25719.0,25718.0,4.96611244]
[1693898999689,0.00780348,25719.0,25718.0,4.96647244]
[1693898999890,0.00780348,25719.0,25718.0,4.96725244]
[1693899000031,0.00780348,25719.0,25718.0,4.96557244]
[1693899000228,0.00780348,25719.0,25718.0,4.96593244]
[1693899000464,0.00780348,25719.0,25718.0,4.96677244]
[1693899000882,0.00780348,25719.0,25718.0,4.96665244]
[1693899001076,0.00780348,25719.0,25718.0,4.96653244]
[1693899001329,0.00780348,25719.0,25718.0,4.96629244]
[1693899001687,0.00780348,25719.0,25718.0,4.96683244]
[1693899001886,0.00780348,25719.0,25718.0,4.96689244]
[1693899002017,0.00780348,25719.0,25718.0,4.96653244]
[1693899002217,0.00780348,25719.0,25718.0,4.73392863]
[1693899002419,0.00780348,25719.0,25718.0,4.96886618]
[1693899002619,0.00780348,25719.0,25718.0,4.96976618]
[1693899002823,0.00780348,25719.0,25718.0,4.96952618]
[1693899003033,0.00780348,25719.0,25718.0,4.97474618]
[1693899003231,0.00780348,25719.0,25718.0,4.97684618]
[1693899003449,0.00780348,25719.0,25718.0,4.97522618]
[1693899003649,0.00780348,25719.0,25718.0,4.97246618]
[1693899003901,0.00780348,25719.0,25718.0,4.97222618]
[1693899004016,0.00780348,25719.0,25718.0,4.97186618]
[1693899004416,0.00780348,25719.0,25718.0,4.97078618]
[1693899004715,0.00780348,25719.0,25718.0,4.97066618]
[1693899004917,0.00780348,25719.0,25718.0,4.96778618]
[1693899005092,0.00780348,25719.0,25718.0,4.96748618]
[1693899005296,0.00780348,25719.0,25718.0,4.96778618]
[1693899005506,0.00780348,25719.0,25718.0,4.96694618]
[1693899005678,0.00780348,25719.0,25718.0,4.96886618]
[1693899005879,0.00780348,25719.0,25718.0,4.96922618]
[1693899006083,0.00780348,25719.0,25718.0,4.96976618]
[1693899006264,0.00780348,25719.0,25718.0,4.96970618]
[1693899006458,0.00780348,25719.0,25718.0,4.94970618]
[1693899006728,0.00780348,25719.0,25718.0,4.96964618]
[1693899006906,0.00780348,25719.0,25718.0,4.96940618]
[1693899007108,4.8e-07,25719.0,25718.0,4.96982618]
[1693899007313,0.1563,25721.0,25720.0,0.03891]
[1693899007489,0.1563,25721.0,25720.0,4.88095821]
[1693899007832,0.1563,25721.0,25720.0,5.59587946]
[1693899008038,0.2584,25722.0,25720.0,5.59563946]
[1693899008250,0.2584,25722.0,25721.0,3.85121799]
[1693899009792,0.2604,25722.0,25721.0,3.85121799]
[1693899010914,0.2634,25722.0,25721.0,3.85121799]
[1693899017153,0.28202951,25722.0,25721.0,3.85121799]
[1693899018525,0.28202951,25722.0,25721.0,3.88303011]
[1693899019578,0.28202951,25722.0,25721.0,3.7898505]
[1693899019991,0.2634,25722.0,25721.0,3.7898505]
[1693899021596,0.28201667,25722.0,25721.0,3.7898505]
[1693899023828,0.28201667,25722.0,25721.0,3.88303011]
[1693899025008,0.28201667,25722.0,25721.0,3.7898505]
[1693899025209,0.28201667,25722.0,25721.0,3.88303011]
[1693899025673,0.28201667,25722.0,25721.0,3.7898505]
[1693899025848,0.28201667,25722.0,25721.0,3.40320523]
[1693899062682,0.04321667,25722.0,25721.0,3.40320523]
[1693899066281,0.04321667,25722.0,25721.0,3.7898505]
[1693899066959,0.0246,25722.0,25721.0,3.7898505]
[1693899069954,0.0246,25722.0,25721.0,3.88303011]